lending/lending_fUSD_20240610
["ID","MTS","AMOUNT","RATE_DAILY","PERIOD"]
[328965521,1718033451439,-500.0,0.00029041,4]
[328965522,1718033451449,-500.0,0.00029041,4]
[328965523,1718033451460,-500.0,0.00029041,4]
[328965524,1718033451471,-500.0,0.00029041,4]
[328965525,1718033451482,-500.0,0.00029041,4]
[328965526,1718033451493,-813.37,0.00029041,4]
[328965527,1718033451504,-500.0,0.00029041,4]
[328965528,1718033451514,-813.37,0.00029041,4]
[328965529,1718033451524,-813.37,0.00029041,4]
[328965530,1718033451535,-500.0,0.00029041,4]
[328965531,1718033451545,-588.3,0.00029041,4]
[328965532,1718033451555,-500.0,0.00029041,4]
[328965533,1718033451566,-500.0,0.00029041,4]
[328965534,1718033451576,-588.3,0.00029041,4]
[328965535,1718033451588,-500.0,0.00029041,4]
[328965536,1718033451604,-151.0,0.00029041,7]
[328965537,1718033451617,-813.37,0.00029041,4]
[328965538,1718033451627,-500.0,0.00029041,4]
[328965539,1718033451637,-500.0,0.00029041,4]
[328965540,1718033451648,-151.0,0.00029041,7]
[328965541,1718033451658,-500.0,0.00029041,4]
[328965542,1718033451668,-500.0,0.00029041,4]
[328965543,1718033451678,-588.3,0.00029041,4]
[328965544,1718033451689,-813.37,0.00029041,4]
[328965545,1718033451699,-500.0,0.00029041,4]
[328965546,1718033451709,-151.0,0.00029041,7]
[328965547,1718033451720,-500.0,0.00029041,4]
[328965548,1718033451730,-588.3,0.00029041,4]
[328965549,1718033451740,-500.0,0.00029041,4]
[328965550,1718033451750,-813.37,0.00029041,4]
[328965551,1718033451762,-500.0,0.00029041,4]
[328965552,1718033451773,-517.68606476,0.00029041,4]
[328965553,1718033451783,-500.0,0.00029041,4]
[328965554,1718033451793,-151.0,0.00029041,7]
[328965555,1718033451802,-588.3,0.00029041,4]
[328965556,1718033451813,-813.37,0.00029041,4]
[328965557,1718033451824,-500.0,0.00029041,4]
[328965558,1718033451834,-500.0,0.00029041,4]
[328965559,1718033451845,-588.3,0.00029041,4]
[328965560,1718033451855,-813.37,0.00029041,4]
[328965561,1718033451867,-500.0,0.00029041,4]
[328965562,1718033451877,-500.0,0.00029041,4]
[328965563,1718033451888,-500.0,0.00029041,4]
[328965564,1718033451899,-554.3433568,0.00029041,4]
[328965565,1718033451910,-588.3,0.00029041,4]
[328965566,1718033451921,-813.37,0.00029041,4]
[328965567,1718033451932,-500.0,0.00029041,4]
[328965568,1718033451942,-500.0,0.00029041,4]
[328965569,1718033451953,-500.0,0.00029041,4]
[328965570,1718033451963,-588.3,0.00029041,4]
[328965571,1718033451974,-813.37,0.00029041,4]
[328965572,1718033451985,-500.0,0.00029041,4]
[328965573,1718033451996,-500.0,0.00029041,4]
[328965574,1718033452007,-500.0,0.00029041,4]
[328965575,1718033452017,-588.3,0.00029041,4]
[328965576,1718033452028,-813.37,0.00029041,4]
[328965577,1718033452038,-500.0,0.00029041,4]
[328965578,1718033452050,-500.0,0.00029041,4]
[328965579,1718033452061,-588.3,0.00029041,4]
[328965580,1718033452072,-500.0,0.00029041,4]
[328965581,1718033452083,-813.37,0.00029041,4]
[328965582,1718033452096,-550.48553603,0.00029041,4]
[328965583,1718033452107,-500.0,0.00029041,4]
[328965584,1718033452121,-500.0,0.00029041,4]
[328965585,1718033452132,-588.3,0.00029041,4]
[328965586,1718033452143,-813.37,0.00029041,4]
[328965587,1718033452155,-500.0,0.00029041,4]
[328965588,1718033452166,-588.3,0.00029041,4]
[328965589,1718033452178,-813.37,0.00029041,4]
[328965590,1718033452188,-283.58832533,0.00029041,4]
[328965591,1718033452199,-500.0,0.00029041,4]
[328965592,1718033452210,-813.37,0.00029041,4]
[328965593,1718033452221,-588.3,0.00029041,4]
[328965594,1718033452231,-500.0,0.00029041,4]
[328965595,1718033452242,-813.37,0.00029041,4]
[328965596,1718033452253,-588.3,0.00029041,4]
[328965597,1718033452263,-588.3,0.00029041,4]
[328965598,1718033452274,-500.0,0.00029041,4]
[328965599,1718033452284,-813.37,0.00029041,4]
[328965600,1718033452431,-500.0,0.00029041,4]
[328965601,1718033452441,-588.3,0.00029041,4]
[328965602,1718033452452,-500.0,0.00029041,4]
[328965603,1718033452462,-813.37,0.00029041,4]
[328965604,1718033452472,-500.0,0.00029041,4]
[328965605,1718033452483,-588.3,0.00029041,4]
[328965606,1718033452494,-500.0,0.00029041,4]
[328965607,1718033452504,-813.37,0.00029041,4]
[328965608,1718033452515,-500.0,0.00029041,4]
[328965609,1718033452525,-500.0,0.00029041,4]
[328965610,1718033452536,-588.3,0.00029041,4]
[328965611,1718033452546,-813.37,0.00029041,4]
[328965612,1718033452556,-500.0,0.00029041,4]
[328965613,1718033452567,-500.0,0.00029041,4]
[328965614,1718033452578,-500.0,0.00029041,4]
[328965615,1718033452589,-588.3,0.00029041,4]
[328965616,1718033452603,-213.09416686,0.00029041,4]
[328965617,1718033452613,-382.9650451,0.00029041,4]
[328965618,1718033452626,-588.3,0.00029041,4]
[328965619,1718033452636,-500.0,0.00029041,4]
[328965620,1718033452648,-813.37,0.00029041,4]
[328965621,1718033452659,-156.20084954,0.00029041,4]
[328965622,1718033452670,-813.37,0.00029041,4]
[328965623,1718033452681,-588.3,0.00029041,4]
[328965624,1718033452692,-500.0,0.00029041,4]
[328965625,1718033452703,-813.37,0.00029041,4]
[328965626,1718033452713,-588.3,0.00029041,4]
[328965627,1718033452724,-813.54170707,0.00029041,4]
[328965628,1718033452736,-500.0,0.00029041,4]
[328965629,1718033452748,-588.3,0.00029041,4]
[328965630,1718033452758,-500.0,0.00029041,4]
[328965631,1718033452770,-588.44444354,0.00029041,4]
[328965632,1718033452781,-500.0,0.00029041,4]
[328965633,1718033452791,-500.0,0.00029041,4]
[328965634,1718033452802,-500.0,0.00029041,4]
[328965635,1718033452813,-500.0,0.00029041,4]
[328965636,1718033452826,-507.57394759,0.00029041,4]
[328965637,1718033452837,-500.0,0.00029041,4]
[328965638,1718033452848,-500.0,0.00029041,4]
[328965639,1718033452861,-500.0,0.00029041,4]
[328965640,1718033452874,-500.0,0.00029041,4]
[328965641,1718033452884,-500.0,0.00029041,4]
[328965642,1718033452894,-500.0,0.00029041,4]
[328965643,1718033452904,-500.0,0.00029041,4]
[328965644,1718033452914,-500.0,0.00029041,4]
[328965645,1718033452924,-500.0,0.00029041,4]
[328965646,1718033452935,-500.0,0.00029041,4]
[328965647,1718033452945,-500.0,0.00029041,4]
[328965648,1718033452957,-500.0,0.00029041,4]
[328965649,1718033452967,-254.86367867,0.00029041,4]
[328965650,1718033453096,-245.13632133,0.00029041,4]
[328965651,1718033453106,-500.0,0.00029041,4]
[328965652,1718033453117,-500.0,0.00029041,4]
[328965653,1718033453127,-500.0,0.00029041,4]
[328965654,1718033453138,-500.0,0.00029041,4]
[328965655,1718033453148,-500.0,0.00029041,4]
[328965656,1718033453158,-500.0,0.00029041,4]
[328965657,1718033453169,-500.0,0.00029041,4]
[328965658,1718033453180,-500.0,0.00029041,4]
[328965659,1718033453190,-420.81021776,0.00029041,4]
[328965660,1718033453205,-79.18978224,0.00029041,4]
[328965661,1718033453216,-299.06372752,0.00029041,4]
[328965662,1718033453242,-156.47913975,0.00029039,2]
[328965663,1718033453253,-200.93627248,0.00029041,4]
[328965664,1718033453264,-500.0,0.00029041,4]
[328965665,1718033453275,-441.26791159,0.00029041,4]
[328965666,1718033453286,-500.0,0.00029041,4]
[328965667,1718033453297,-500.0,0.00029041,4]
[328965668,1718033453308,-500.0,0.00029041,4]
[328965669,1718033453318,-500.0,0.00029041,4]
[328965670,1718033453328,-500.0,0.00029041,4]
[328965671,1718033453339,-500.0,0.00029041,4]
[328965672,1718033453350,-500.0,0.00029041,4]
[328965673,1718033453361,-500.0,0.00029041,4]
[328965674,1718033453376,-500.0,0.00029041,4]
[328965675,1718033453387,-500.0,0.00029041,4]
[328965676,1718033453397,-500.0,0.00029041,4]
[328965677,1718033453407,-500.0,0.00029041,4]
[328965678,1718033453417,-500.0,0.00029041,4]
[328965679,1718033453427,-500.0,0.00029041,4]
[328965680,1718033453438,-500.0,0.00029041,4]
[328965681,1718033453448,-500.0,0.00029041,4]
[328965682,1718033453458,-500.0,0.00029041,4]
[328965683,1718033453468,-500.0,0.00029041,4]
[328965684,1718033453479,-584.48892223,0.00029041,4]
[328965685,1718033453489,-291.19364194,0.00029041,4]
[328965686,1718033453500,-500.0,0.00029041,4]
[328965687,1718033453510,-500.0,0.00029041,4]
[328965688,1718033453520,-500.0,0.00029041,4]
[328965689,1718033453532,-500.0,0.00029041,4]
[328965690,1718033453543,-500.0,0.00029041,4]
[328965691,1718033453554,-500.0,0.00029041,4]
[328965692,1718033453565,-500.0,0.00029041,4]
[328965693,1718033453576,-500.0,0.00029041,4]
[328965694,1718033453586,-500.0,0.00029041,4]
[328965695,1718033453601,-500.0,0.00029041,4]
[328965696,1718033453612,-500.0,0.00029041,4]
[328965697,1718033453625,-583.04091462,0.00029041,4]
[328965698,1718033453634,-500.0,0.00029041,4]
[328965699,1718033453644,-500.0,0.00029041,4]
[328965700,1718033453655,-500.0,0.00029041,4]
[328965701,1718033453666,-500.0,0.00029041,4]
[328965702,1718033453678,-500.0,0.00029041,4]
[328965703,1718033453690,-500.0,0.00029041,4]
[328965704,1718033453701,-500.0,0.00029041,4]
[328965705,1718033453713,-138.87258707,0.00029041,4]
[328965706,1718033453740,-361.12741293,0.00029041,4]
[328965707,1718033453752,-500.0,0.00029041,4]
[328965708,1718033453763,-540.1149015,0.00029041,4]
[328965709,1718033453774,-500.0,0.00029041,4]
[328965710,1718033453786,-402.51038642,0.00029041,4]
[328965711,1718033453800,-97.48961358,0.00029041,4]
[328965712,1718033453813,-500.0,0.00029041,4]
[328965713,1718033453825,-500.0,0.00029041,4]
[328965714,1718033453837,-282.81361423,0.00029041,4]
[328965715,1718033453852,-217.18638577,0.00029041,4]
[328965716,1718033453868,-51.88142505,0.00029041,4]
[328965717,1718033453882,-448.11857495,0.00029041,4]
[328965718,1718033453893,-500.0,0.00029041,4]
[328965719,1718033453905,-500.0,0.00029041,4]
[328965720,1718033453916,-500.0,0.00029041,4]
[328965721,1718033453928,-500.0,0.00029041,4]
[328965722,1718033453939,-500.0,0.00029041,4]
[328965723,1718033453950,-500.0,0.00029041,4]
[328965724,1718033453961,-500.0,0.00029041,4]
[328965725,1718033453972,-500.0,0.00029041,4]
[328965726,1718033453983,-500.0,0.00029041,4]
[328965727,1718033453993,-500.0,0.00029041,4]
[328965728,1718033454004,-500.0,0.00029041,4]
[328965729,1718033454014,-500.0,0.00029041,4]
[328965730,1718033454027,-500.0,0.00029041,4]
[328965731,1718033454038,-500.0,0.00029041,4]
[328965732,1718033454049,-500.0,0.00029041,4]
[328965733,1718033454061,-500.0,0.00029041,4]
[328965734,1718033454072,-500.0,0.00029041,4]
[328965735,1718033454085,-500.0,0.00029041,4]
[328965736,1718033454099,-500.0,0.00029041,4]
[328965737,1718033454111,-500.0,0.00029041,4]
[328965738,1718033454125,-500.0,0.00029041,4]
[328965739,1718033454136,-500.0,0.00029041,4]
[328965740,1718033454147,-500.0,0.00029041,4]
[328965741,1718033454158,-500.0,0.00029041,4]
[328965742,1718033454171,-218.13779183,0.00029041,4]
[328965743,1718033454182,-257.8931391,0.00029041,4]
[328965744,1718033454193,-500.0,0.00029041,4]
[328965745,1718033454203,-500.0,0.00029041,4]
[328965746,1718033454214,-500.0,0.00029041,4]
[328965747,1718033454225,-591.19512238,0.00029041,4]
[328965748,1718033454236,-500.0,0.00029041,4]
[328965749,1718033454247,-500.0,0.00029041,4]
[328965750,1718033454258,-500.0,0.00029041,4]
[328965751,1718033454269,-511.91120738,0.00029041,4]
[328965752,1718033454280,-500.0,0.00029041,4]
[328965753,1718033454291,-500.0,0.00029041,4]
[328965754,1718033454301,-500.0,0.00029041,4]
[328965755,1718033454311,-500.0,0.00029041,4]
[328965756,1718033454321,-500.0,0.00029041,4]
[328965757,1718033454331,-500.0,0.00029041,4]
[328965758,1718033454342,-596.98,0.00029041,4]
[328965759,1718033454352,-500.0,0.00029041,4]
[328965760,1718033454362,-596.98,0.00029041,4]
[328965761,1718033454375,-500.0,0.00029041,4]
[328965762,1718033454385,-500.0,0.00029041,4]
[328965763,1718033454394,-596.98,0.00029041,4]
[328965764,1718033454405,-500.0,0.00029041,4]
[328965765,1718033454415,-500.0,0.00029041,4]
[328965766,1718033454426,-500.0,0.00029041,4]
[328965767,1718033454436,-596.98,0.00029041,4]
[328965768,1718033454447,-500.0,0.00029041,4]
[328965769,1718033454458,-500.0,0.00029041,4]
[328965770,1718033454468,-500.0,0.00029041,4]
[328965771,1718033454478,-500.0,0.00029041,4]
[328965772,1718033454489,-596.98,0.00029041,4]
[328965773,1718033454500,-500.0,0.00029041,4]
[328965774,1718033454510,-500.0,0.00029041,4]
[328965775,1718033454521,-500.0,0.00029041,4]
[328965776,1718033454531,-500.0,0.00029041,4]
[328965777,1718033454542,-596.98,0.00029041,4]
[328965778,1718033454554,-500.0,0.00029041,4]
[328965779,1718033454565,-500.0,0.00029041,4]
[328965780,1718033454576,-500.0,0.00029041,4]
[328965781,1718033454587,-596.98,0.00029041,4]
[328965782,1718033454601,-500.0,0.00029041,4]
[328965783,1718033454612,-500.0,0.00029041,4]
[328965784,1718033454626,-500.0,0.00029041,4]
[328965785,1718033454637,-596.98,0.00029041,4]
[328965786,1718033454648,-500.0,0.00029041,4]
[328965787,1718033454659,-500.0,0.00029041,4]
[328965788,1718033454671,-500.0,0.00029041,4]
[328965789,1718033454682,-500.0,0.00029041,4]
[328965790,1718033454693,-500.0,0.00029041,4]
[328965791,1718033454704,-596.98,0.00029041,4]
[328965792,1718033454716,-500.0,0.00029041,4]
[328965793,1718033454726,-500.0,0.00029041,4]
[328965794,1718033454737,-500.0,0.00029041,4]
[328965795,1718033454748,-500.0,0.00029041,4]
[328965796,1718033454759,-500.0,0.00029041,4]
[328965797,1718033454769,-511.8778299,0.00029041,4]
[328965798,1718033454781,-596.98,0.00029041,4]
[328965799,1718033454791,-500.0,0.00029041,4]
[328965800,1718033454802,-500.0,0.00029041,4]
[328965801,1718033454813,-500.0,0.00029041,4]
[328965802,1718033454823,-500.0,0.00029041,4]
[328965803,1718033454835,-500.0,0.00029041,4]
[328965804,1718033454845,-596.98,0.00029041,4]
[328965805,1718033454856,-500.0,0.00029041,4]
[328965806,1718033454868,-500.0,0.00029041,4]
[328965807,1718033454880,-500.0,0.00029041,4]
[328965808,1718033454890,-500.0,0.00029041,4]
[328965809,1718033454901,-596.98,0.00029041,4]
[328965810,1718033454912,-500.0,0.00029041,4]
[328965811,1718033454923,-500.0,0.00029041,4]
[328965812,1718033454934,-500.0,0.00029041,4]
[328965813,1718033454945,-500.0,0.00029041,4]
[328965814,1718033454956,-500.0,0.00029041,4]
[328965815,1718033454966,-596.98,0.00029041,4]
[328965816,1718033454977,-500.0,0.00029041,4]
[328965817,1718033454988,-500.0,0.00029041,4]
[328965818,1718033454998,-500.0,0.00029041,4]
[328965819,1718033455009,-516.29227611,0.00029041,4]
[328965820,1718033455020,-500.0,0.00029041,4]
[328965821,1718033455030,-596.98,0.00029041,4]
[328965822,1718033455040,-500.0,0.00029041,4]
[328965823,1718033455051,-500.0,0.00029041,4]
[328965824,1718033455061,-500.0,0.00029041,4]
[328965825,1718033455072,-596.98,0.00029041,4]
[328965826,1718033455083,-500.0,0.00029041,4]
[328965827,1718033455098,-500.0,0.00029041,4]
[328965828,1718033455109,-500.0,0.00029041,4]
[328965829,1718033455120,-500.0,0.00029041,4]
[328965830,1718033455131,-500.0,0.00029041,4]
[328965831,1718033455141,-596.98,0.00029041,4]
[328965832,1718033455152,-500.0,0.00029041,4]
[328965833,1718033455162,-500.0,0.00029041,4]
[328965834,1718033455173,-500.0,0.00029041,4]
[328965835,1718033455184,-500.0,0.00029041,4]
[328965836,1718033455195,-432.7152255,0.00029041,4]
[328965837,1718033455475,-124.04347044,0.00029041,4]
[328965838,1718033455486,-224.95895534,0.00029041,4]
[328965839,1718033455513,-372.02104466,0.00029041,4]
[328965840,1718033455524,-379.78325691,0.00029041,4]
[328965845,1718033669539,5665.12353146,0.0001298,2]
[328965847,1718033690203,-225.624903,0.00013998,2]
[328965848,1718033690227,-167.94097913,0.00013998,2]
[328965849,1718033690255,-206.43411787,0.00013999,2]
[328965850,1718033756949,243.52072575,0.000101,2]
[328965851,1718033795489,3339.34141866,0.00013,2]
[328965854,1718034162743,1850.1,0.00032631,30]
[328965855,1718034279038,694.96,0.00012867,2]
[328965856,1718034352571,345.0,0.0003263,30]
[328965858,1718034445137,-316.86419262,0.00013291,2]
[328965859,1718034445162,-3066.02458345,0.00013291,2]
[328965860,1718034445186,-4615.31940654,0.00013292,2]
[328965861,1718034445211,-300.0,0.00013296,2]
[328965862,1718034445239,-1302.51706264,0.00013297,2]
[328965863,1718034445265,-797.0,0.00013797,2]
[328965864,1718034445289,-1679.57949009,0.00013799,2]
[328965930,1718034633604,-418.9295176,0.00013191,2]
[328965931,1718034633617,-969.45652537,0.00013191,2]
[328965932,1718034633630,-2737.73195703,0.00013191,2]
[328965933,1718034633640,-630.19892213,0.00013338,2]
[328965934,1718034633652,-995.10560892,0.00013338,2]
[328965935,1718034633663,-450.22,0.00013339,2]
[328965936,1718034633672,-119.98778495,0.00013699,2]
[328965937,1718034633684,-43.01040214,0.00013699,2]
[328965938,1718034633694,-250.0,0.00013703,2]
[328965939,1718034633704,-1322.49,0.00013744,2]
[328965940,1718034633714,-353.73140991,0.00013799,2]
[328965941,1718034633724,-155.45,0.00013805,2]
[328965942,1718034633734,-705.04354795,0.00013899,2]
[328965943,1718034633744,-258.64,0.00013936,2]
[328965944,1718034633755,-155.45,0.00013949,2]
[328965945,1718034633766,-150.0,0.00013973,2]
[328965946,1718034633776,-2126.72226871,0.00013985,2]
[328965947,1718034633785,-150.0,0.00013987,2]
[328965948,1718034633795,-150.0,0.00013987,2]
[328965949,1718034633805,-224.99,0.00013988,2]
[328965950,1718034633815,-5196.67,0.00013988,2]
[328965951,1718034633825,-150.99,0.00013988,2]
[328965952,1718034633835,-150.99,0.00013988,2]
[328965953,1718034633845,-4973.37173443,0.00013989,2]
[328965954,1718034633855,-150.99,0.00013989,2]
[328965955,1718034633865,-151.93,0.0001399,2]
[328965956,1718034633875,-151.93,0.0001399,2]
[328965957,1718034633885,-238.21449077,0.00013997,2]
[328965958,1718034633896,-531.47230708,0.00013997,2]
[328965959,1718034633906,-528.49267838,0.00013997,2]
[328965960,1718034633917,-4544.42459731,0.00013997,2]
[328965961,1718034633927,-169.11351274,0.00013998,2]
[328965962,1718034633938,-2335.29723679,0.00013998,2]
[328965963,1718034633948,-898.73655054,0.00013998,2]
[328965964,1718034633958,-3384.77160162,0.00013998,2]
[328965965,1718034633968,-163.24630687,0.00013998,2]
[328965966,1718034633979,-175.83019816,0.00013998,2]
[328965967,1718034633989,-864.32516302,0.00013998,2]
[328965968,1718034634001,-1335.64980723,0.00013998,2]
[328965969,1718034634012,-327.09381956,0.00013998,2]
[328965970,1718034634023,-328549.18394971,0.00013999,2]
[328965971,1718034634036,-362.72006922,0.00013999,2]
[328965972,1718034634049,-20260.85855017,0.00013999,2]
[328965973,1718034634063,-1362.61061232,0.00013999,2]
[328965974,1718034634075,-346.62672627,0.00013999,2]
[328965975,1718034634085,-155.0,0.00013999,2]
[328965976,1718034634105,-17162.82,0.00013999,2]
[328965977,1718034634115,-171923.12589967,0.00014,2]
[328965978,1718034634128,-6213.98001508,0.00014,2]
[328965979,1718034634142,-11859.17436126,0.00014,2]
[328965980,1718034634154,-1759.20919,0.00014,2]
[328965981,1718034634167,-641.37290133,0.00014,2]
[328965982,1718034634180,-8421.46922863,0.00014,2]
[328965983,1718034634192,-25969.32700222,0.00014,2]
[328965984,1718034634204,-250.48725582,0.00014,2]
[328965985,1718034634216,-418.54007673,0.00014,2]
[328965986,1718034634228,-553.94826407,0.00014,2]
[328965987,1718034634240,-319.5176318,0.00014,2]
[328965988,1718034634257,-811.05669613,0.00014,2]
[328965989,1718034634270,-3602.44257493,0.00014,2]
[328965990,1718034634282,-15808.46883565,0.00014,2]
[328965991,1718034634339,-11011.07114583,0.00014,2]
[328965992,1718034634351,-472.04,0.00014,2]
[328965994,1718034641723,-51480.76652093,0.00014,2]
[328965999,1718034641736,-1499865.0,0.00014,2]
[328966018,1718034642134,-3024.36457705,0.00014,2]
[328966019,1718034642150,-18144.0996,0.00014,2]
[328966020,1718034642165,-27548.54529977,0.00014,2]
[328966021,1718034642180,-5375.98500014,0.00014,2]
[328966022,1718034642195,-4199.88,0.00014,2]
[328966023,1718034642210,-7112.4791931,0.00014,2]
[328966024,1718034642222,-394.14575585,0.00014,2]
[328966025,1718034642234,-1648.95132,0.00014,2]
[328966026,1718034642245,-623.44199861,0.00014,2]
[328966027,1718034642260,-321.89,0.00014,2]
[328966028,1718034642272,-611.01483907,0.00014,2]
[328966029,1718034642283,-680.9102,0.00014,2]
[328966030,1718034642295,-21889.24439782,0.00014,2]
[328966031,1718034642307,-142579.4447892,0.00014,2]
[328966032,1718034642489,-3519.55,0.00014,2]
[328966034,1718034642502,-1292.04521374,0.00014,2]
[328966036,1718034642515,-1490.43650887,0.00014,2]
[328966038,1718034642529,-1985.592571,0.00014,2]
[328966040,1718034642540,-3135.10340248,0.00014,2]
[328966042,1718034642552,-1912.11003802,0.00014,2]
[328966043,1718034642564,-25179.267016,0.00014,2]
[328966044,1718034642577,-1138.47,0.00014,2]
[328966045,1718034642590,-4380.54242149,0.00014,2]
[328966172,1718034644201,-150328.48446463,0.00014,2]
[328966175,1718034644213,-9678.87513959,0.00014,2]
[328966179,1718034644225,-862.3800003,0.00014,2]
[328966295,1718034644960,-35871.7515772,0.00014,2]
[328966297,1718034644972,-61949.3398876,0.00014,2]
[328966299,1718034644982,-499.99,0.00014,2]
[328966301,1718034644993,-155.45,0.00014093,2]
[328966303,1718034645005,-155.45,0.00014237,2]
[328966305,1718034645014,-23900.0,0.00014253,2]
[328966307,1718034645025,-9547.71355764,0.00014278,2]
[328966310,1718034645040,-166.97172071,0.00014378,2]
[328966312,1718034645051,-155.45,0.00014381,2]
[328966313,1718034645061,-161.84597815,0.00014478,2]
[328966316,1718034645072,-155.45,0.00014525,2]
[328966317,1718034645082,-176.24870704,0.00014578,2]
[328966319,1718034645092,-250.0,0.00014678,2]
[328966321,1718034645102,-174.15984609,0.00014799,2]
[328966323,1718034645112,-720.97337774,0.0001493,2]
[328966325,1718034645122,-151.93,0.0001499,2]
[328966327,1718034645132,-150.0,0.00014999,2]
[328966329,1718034645142,-644901.90105477,0.00015,2]
[328966331,1718034645152,-1138.96986869,0.0001503,2]
[328966333,1718034645162,-694.96,0.0001513,2]
[328966335,1718034645172,-210.0,0.00015386,2]
[328966337,1718034645182,-9547.71355757,0.00015698,2]
[328966339,1718034645192,-705.04354792,0.00016048,2]
[328966341,1718034645203,-2568.04,0.00016194,2]
[328966343,1718034645212,-177.68,0.00016247,2]
[328966345,1718034645222,-1000.0,0.00016319,2]
[328966347,1718034645232,-1806.44529912,0.000165,2]
[328966349,1718034645241,-725.97,0.00016692,2]
[328966351,1718034645251,-2445.45,0.0001693,2]
[328966353,1718034645261,-9547.71355757,0.00017118,2]
[328966355,1718034645271,-694.96,0.00017394,2]
[328966357,1718034645281,-172.83,0.00017461,2]
[328966359,1718034645291,-705.04354792,0.00018197,2]
[328966361,1718034645301,-1000.0,0.00018358,2]
[328966363,1718034645311,-9547.71355757,0.00018539,2]
[328966365,1718034645321,-3597.0,0.000189,2]
[328966367,1718034645331,-2568.04,0.00018933,2]
[328966368,1718034645341,-350.0,0.00019178,2]
[328966369,1718034645350,-357.07679793,0.00019178,2]
[328966370,1718034645360,-258.64,0.0001951,2]
[328966371,1718034645370,-694.96,0.00019658,2]
[328966372,1718034645380,-9547.71355757,0.00019959,2]
[328966373,1718034645390,-3893.9489826,0.0002,2]
[328966374,1718034645400,-1980.08690757,0.0002,2]
[328966375,1718034645410,-226.69645122,0.000201,2]
[328966376,1718034645419,-705.04354792,0.00020346,2]
[328966377,1718034645428,-1000.0,0.00020398,2]
[328966378,1718034645438,-9547.71355757,0.00021379,2]
[328966379,1718034645448,-2568.04,0.00021673,2]
[328966380,1718034645458,-250.0,0.00021918,2]
[328966381,1718034645468,-694.96,0.00021922,2]
[328966398,1718034645641,-720.97337774,0.00022415,2]
[328966400,1718034645652,-1000.0,0.00022438,2]
[328966402,1718034645663,-1138.96986867,0.00022465,2]
[328966404,1718034645673,-705.04354792,0.00022494,2]
[328966406,1718034645683,-9547.71355757,0.00022799,2]
[328966408,1718034645693,-216.91144525,0.00023,2]
[328966411,1718034645703,-694.96,0.00024186,2]
[328966413,1718034645713,-9547.71355757,0.00024219,2]
[328966416,1718034645723,-161.38,0.00024384,2]
[328966419,1718034645733,-287.95,0.00024384,2]
[328966421,1718034645743,-1000.0,0.00024478,2]
[328966423,1718034645755,-705.04354792,0.00024643,2]
[328966425,1718034645766,-349.82303758,0.00024799,2]
[328966427,1718034645778,-349.82303753,0.00024799,2]
[328966429,1718034645788,-349.82303753,0.00024799,2]
[328966431,1718034645798,-349.82303753,0.00024799,2]
[328966433,1718034645808,-349.82303753,0.00024799,2]
[328966435,1718034645820,-349.82303753,0.00024799,2]
[328966437,1718034645830,-349.82303753,0.00024799,2]
[328966439,1718034645840,-300.0,0.000249,2]
[328966441,1718034645850,-706.32929204,0.00025,2]
[328966443,1718034645861,-183.78610967,0.00025,2]